bitfinex-derivatives/quotes_BTCF0:USTF0_20250919
["timestamp","ask_amount","ask_price","bid_price","bid_amount"]
[1758314441168,0.006,115440.0,115430.0,2.2953432]
[1758314441774,0.006,115440.0,115430.0,2.6356942]
[1758314441976,0.006,115440.0,115430.0,2.79138349]
[1758314442281,0.006,115440.0,115430.0,3.04138349]
[1758314442780,0.004,115440.0,115430.0,3.04138349]
[1758314443683,0.004,115440.0,115430.0,2.70103249]
[1758314444084,0.10429879,115450.0,115440.0,0.1200937]
[1758314444381,0.10419879,115450.0,115440.0,1.27019311]
[1758314445084,0.10419879,115450.0,115440.0,0.58949111]
[1758314445286,0.10819879,115450.0,115440.0,2.05371311]
[1758314446283,0.11019879,115450.0,115440.0,2.05371311]
[1758314447482,0.11019879,115450.0,115440.0,1.9451157]
[1758314448279,0.11019879,115450.0,115440.0,2.01471354]
[1758314449880,0.11019879,115450.0,115440.0,1.23110068]
[1758314450082,0.11019879,115450.0,115440.0,2.01458068]
[1758314457889,0.11019879,115450.0,115440.0,1.23110068]
[1758314458187,0.11019879,115450.0,115440.0,2.01450068]
[1758314460083,0.11019879,115450.0,115440.0,2.12309809]
[1758314462084,0.11019879,115450.0,115440.0,1.44248895]
[1758314462283,0.11019879,115450.0,115440.0,2.12309809]
[1758314465697,0.11019879,115450.0,115440.0,2.01450068]
[1758314474102,0.11019879,115450.0,115440.0,2.12309809]
[1758314474302,0.11019879,115450.0,115440.0,1.33969809]
[1758314474503,0.11019879,115450.0,115440.0,2.12305809]
[1758314475992,0.11019879,115450.0,115440.0,2.12301809]
[1758314478899,0.11019879,115450.0,115440.0,1.33969809]
[1758314479106,0.11019879,115450.0,115440.0,2.12301809]
[1758314482107,0.11019879,115450.0,115440.0,2.01442068]
[1758314482909,0.11019879,115450.0,115440.0,1.92784698]
[1758314483113,0.11019879,115450.0,115440.0,2.03657035]
[1758314483409,0.11019879,115450.0,115440.0,2.12314405]
[1758314485610,0.11019879,115450.0,115440.0,1.33982405]
[1758314485812,0.11019879,115450.0,115440.0,2.12310405]
[1758314488205,0.11019879,115450.0,115440.0,1.33982405]
[1758314488405,0.11019879,115450.0,115440.0,2.12310405]
[1758314490313,0.11019879,115450.0,115440.0,1.33982405]
[1758314490509,0.11019879,115450.0,115440.0,2.12310405]
[1758314492616,0.0925692,115450.0,115440.0,2.12310405]
[1758314492815,0.11017364,115450.0,115440.0,2.12310405]
[1758314499017,0.11017364,115450.0,115440.0,1.76230405]
[1758314499224,0.11017364,115450.0,115440.0,2.48390405]
[1758314502528,0.11017364,115450.0,115440.0,1.70062405]
[1758314502718,0.11017364,115450.0,115440.0,2.48382405]
[1758314505429,0.006,115450.0,115440.0,2.48382405]
[1758314505631,0.006,115450.0,115440.0,2.50439761]
[1758314507032,0.0925662,115450.0,115440.0,2.50439761]
[1758314509723,0.0925662,115450.0,115440.0,2.84469216]
[1758314512630,0.0925662,115450.0,115440.0,2.50439093]
[1758314513532,0.0925662,115450.0,115440.0,2.84469216]
[1758314513727,0.0925662,115450.0,115440.0,2.50439093]
[1758314514624,0.0925662,115450.0,115440.0,1.63461723]
[1758314514929,0.0925662,115450.0,115440.0,2.41777723]
[1758314515534,0.0925662,115450.0,115440.0,2.50435083]
[1758314516132,0.0925662,115450.0,115440.0,2.1640496]
[1758314516332,0.0925662,115450.0,115440.0,2.41777723]
[1758314516731,0.0925662,115450.0,115440.0,2.50435083]
[1758314518236,0.0925662,115450.0,115440.0,2.41773723]
[1758314518429,0.0925662,115450.0,115440.0,1.63461723]
[1758314518638,0.0925662,115450.0,115440.0,2.41773723]
[1758314518833,0.0925662,115450.0,115440.0,1.63461723]
[1758314519033,0.0925662,115450.0,115440.0,2.41773723]
[1758314520238,0.0925662,115450.0,115440.0,2.50431083]
[1758314521336,0.0925662,115450.0,115440.0,1.63461723]
[1758314521637,0.0925662,115450.0,115440.0,2.41773723]
[1758314526534,0.1065162,115450.0,115440.0,2.40669723]
[1758314526741,0.3565162,115450.0,115440.0,2.40669723]
[1758314531146,0.0925662,115450.0,115440.0,2.75799846]
[1758314531442,0.0925662,115450.0,115440.0,2.84457206]
[1758314532549,0.0925662,115450.0,115440.0,2.41769723]
[1758314533646,0.0925662,115450.0,115440.0,2.30897386]
[1758314538442,0.0865562,115470.0,115460.0,0.1206086]
[1758314538642,0.0865562,115470.0,115460.0,2.55959369]
[1758314538838,0.0865562,115470.0,115460.0,2.21929246]
[1758314539548,0.0865562,115470.0,115460.0,1.45678988]
[1758314539747,0.0885562,115470.0,115460.0,2.58013111]
[1758314539948,0.0885562,115470.0,115460.0,2.67610282]
[1758314540450,0.0885511,115470.0,115460.0,2.67610282]
[1758314540650,0.002,115470.0,115460.0,2.67610282]
[1758314540852,0.002,115470.0,115460.0,3.03482619]
[1758314541251,0.004,115470.0,115460.0,3.03482619]
[1758314541948,0.002,115470.0,115460.0,3.03782619]
[1758314542144,0.0865439,115480.0,115470.0,0.1082211]
[1758314542351,0.0865439,115480.0,115470.0,1.14962356]
[1758314543451,0.0875439,115480.0,115470.0,1.14962356]
[1758314544854,0.0895439,115480.0,115470.0,1.14962356]
[1758314547056,0.71502513,115480.0,115470.0,0.72277123]
[1758314547356,0.71502513,115480.0,115470.0,1.16539]
[1758314547557,1.05532636,115480.0,115470.0,0.38247]
[1758314548149,1.05532636,115480.0,115470.0,1.16539]
[1758314549060,1.05532636,115480.0,115470.0,0.3608]
[1758314549460,1.05532636,115480.0,115470.0,0.38289]
[1758314550461,1.05532636,115480.0,115470.0,0.3608]
[1758314550660,0.0994711,115470.0,115460.0,1.14392]
[1758314550860,0.43977233,115470.0,115460.0,1.14372]
[1758314551763,0.43977233,115470.0,115460.0,1.48402123]
[1758314552466,0.43977233,115470.0,115460.0,1.48502123]
[1758314554965,0.46203233,115470.0,115460.0,0.3618]
[1758314555159,0.46203233,115470.0,115460.0,1.14472]
[1758314559383,0.46203233,115470.0,115460.0,1.16681]
[1758314559678,0.46203233,115470.0,115460.0,1.50711123]
[1758314560074,0.46203233,115470.0,115460.0,1.16681]
[1758314560280,0.46203233,115470.0,115460.0,1.50711123]
[1758314561180,0.1217311,115470.0,115460.0,1.50711123]
[1758314561379,0.1217311,115470.0,115460.0,1.84741246]
[1758314561682,0.1217311,115470.0,115460.0,1.50711123]
[1758314562179,0.1217311,115470.0,115460.0,1.84741246]
[1758314562582,0.1217311,115470.0,115460.0,1.16681]
[1758314562782,0.1217311,115470.0,115460.0,1.84741246]
[1758314563784,0.1217311,115470.0,115460.0,1.50711123]
[1758314563986,0.46203233,115470.0,115460.0,1.50711123]
[1758314566488,0.46203233,115470.0,115460.0,1.50715123]
[1758314571987,0.1217311,115470.0,115460.0,1.50717359]
[1758314574089,0.1217311,115470.0,115460.0,1.16685]
[1758314577896,0.46205469,115470.0,115460.0,1.16685]
[1758314578092,0.46205469,115470.0,115460.0,0.38389]
[1758314578293,0.46205469,115470.0,115460.0,1.16681]
[1758314579695,0.46205469,115470.0,115460.0,1.16671]
[1758314580696,0.0865511,115470.0,115460.0,2.10973718]
[1758314580897,0.0865511,115470.0,115460.0,2.19629538]
[1758314581095,0.0865511,115470.0,115460.0,1.85597179]
[1758314591200,0.0865511,115470.0,115460.0,1.60597179]
[1758314591406,0.0865511,115470.0,115460.0,1.94629538]
[1758314591604,0.0865511,115470.0,115460.0,1.60597179]
[1758314594903,0.0865511,115470.0,115460.0,1.94629538]
[1758314595101,0.0865511,115470.0,115460.0,1.60597179]
[1758314595498,0.0865488,115480.0,115460.0,1.94628928]
[1758314595704,0.0866413,115490.0,115480.0,0.03299]
[1758314595904,0.0865413,115490.0,115480.0,1.51695359]
[1758314596400,0.0865413,115490.0,115480.0,1.60349679]
[1758314596807,0.0865413,115490.0,115480.0,3.10349679]
[1758314597197,0.0865413,115490.0,115480.0,3.01695359]
[1758314597403,0.0945413,115490.0,115480.0,3.01695359]
[1758314598592,0.0945413,115490.0,115480.0,3.08523274]
[1758314598796,0.0945413,115490.0,115480.0,3.09427106]
[1758314598995,0.0945413,115490.0,115480.0,2.30239274]
[1758314599203,0.1078713,115490.0,115480.0,3.07419274]
[1758314605610,0.1078713,115490.0,115480.0,2.29139274]
[1758314605802,0.1078713,115490.0,115480.0,1.95106915]
[1758314605997,0.1078713,115490.0,115480.0,3.07411274]
[1758314607508,0.1078713,115490.0,115480.0,2.73378915]
[1758314607696,0.1078713,115490.0,115480.0,2.29139274]
[1758314607901,0.69819489,115490.0,115480.0,1.95106915]
[1758314608107,0.69819489,115490.0,115480.0,1.23378915]
[1758314608904,0.3578713,115490.0,115480.0,1.23378915]
[1758314609708,0.3578713,115490.0,115480.0,1.57411274]
[1758314619415,0.1078713,115490.0,115480.0,1.57411274]
[1758314633831,0.44805954,115490.0,115480.0,1.57397739]
[1758314635429,0.44805954,115490.0,115480.0,1.59415607]
[1758314635625,0.44805954,115490.0,115480.0,1.25396783]
[1758314635826,0.44805954,115490.0,115480.0,1.59415607]
[1758314636442,0.44805954,115490.0,115480.0,1.25396783]
[1758314636636,0.44805954,115490.0,115480.0,1.59415607]
[1758314637847,0.46983954,115490.0,115480.0,0.45106915]
[1758314638050,0.48741541,115490.0,115480.0,0.83731645]
[1758314638342,0.48741541,115490.0,115480.0,0.83953645]
[1758314639748,0.48741541,115490.0,115480.0,1.17972469]
[1758314644551,0.48741541,115490.0,115480.0,0.83953645]
[1758314646259,0.14722717,115490.0,115480.0,0.83953645]
[1758314646446,0.48741541,115490.0,115480.0,0.83953645]
[1758314647854,0.01373,115480.0,115470.0,0.36312]
[1758314648055,0.80337998,115480.0,115470.0,1.1434]
[1758314649749,0.80637998,115480.0,115470.0,1.1434]
[1758314650356,0.80837998,115480.0,115470.0,1.1434]
[1758314651548,0.1280035,115480.0,115470.0,1.48358824]
[1758314654059,0.46819174,115480.0,115470.0,1.48358824]
[1758314656660,0.1280035,115480.0,115470.0,1.48358824]
[1758314656861,0.46819174,115480.0,115470.0,1.48358824]
[1758314660553,0.1280035,115480.0,115470.0,1.48358824]
[1758314660757,0.46819174,115480.0,115470.0,1.48358824]
[1758314663759,0.1280035,115480.0,115470.0,1.48358824]
[1758314664055,0.46819174,115480.0,115470.0,1.48358824]
[1758314664860,0.1280035,115480.0,115470.0,1.48358824]
[1758314665761,0.46819174,115480.0,115470.0,1.48358824]
[1758314666359,0.1280035,115480.0,115470.0,1.48358824]
[1758314666560,0.46819174,115480.0,115470.0,1.48358824]
[1758314668561,0.1280035,115480.0,115470.0,1.48358824]
[1758314670964,0.46819174,115480.0,115470.0,1.48358824]
[1758314673063,0.1280035,115480.0,115470.0,1.48358824]
[1758314673264,0.46819174,115480.0,115470.0,1.48358824]
[1758314673558,0.1280035,115480.0,115470.0,1.48358824]
[1758314674965,0.46819174,115480.0,115470.0,1.48358824]
[1758314675268,0.46819174,115480.0,115470.0,0.70320824]
[1758314675567,0.46819174,115480.0,115470.0,1.48580824]
[1758314677385,0.1280035,115480.0,115470.0,1.48580824]
[1758314677672,0.46819174,115480.0,115470.0,1.48580824]
[1758314683073,0.1280035,115480.0,115470.0,1.48580824]
[1758314683277,0.46819174,115480.0,115470.0,1.48580824]
[1758314684272,0.1280035,115480.0,115470.0,1.48580824]
[1758314684570,0.1052735,115480.0,115470.0,2.07599648]
[1758314685775,0.1052735,115480.0,115470.0,1.73580824]
[1758314685970,0.1052735,115480.0,115470.0,2.07599648]
[1758314693879,0.1052735,115480.0,115470.0,2.07596542]
[1758314695682,0.1052735,115480.0,115470.0,1.73603271]
[1758314695881,0.1285435,115480.0,115470.0,0.95319271]
[1758314696082,0.1285435,115480.0,115470.0,1.73599271]
[1758314699278,0.1285435,115480.0,115470.0,0.95319271]
[1758314699484,0.1285435,115480.0,115470.0,1.73595271]
[1758314701679,0.1285435,115480.0,115470.0,2.07612542]
[1758314701680,0.0915435,115480.0,115470.0,2.07612542]
[1758314702675,0.1049635,115480.0,115470.0,2.07612542]
[1758314702982,0.1049635,115480.0,115470.0,1.29336542]
[1758314703183,0.1274035,115480.0,115470.0,1.73583271]
[1758314707087,0.1274035,115480.0,115470.0,0.61302]
[1758314707483,0.1274035,115480.0,115470.0,1.3957]
[1758314707684,0.1274035,115480.0,115470.0,1.73587271]
[1758314708981,0.1274035,115480.0,115470.0,0.95319271]
[1758314709288,0.1274035,115480.0,115470.0,1.73587271]
[1758314710783,0.1274035,115480.0,115470.0,0.61302]
[1758314710979,0.46757621,115480.0,115470.0,0.36302]
[1758314711292,0.71757621,115480.0,115470.0,1.14594]
[1758314711491,0.3774035,115480.0,115470.0,1.14594]
[1758314711691,0.3774035,115480.0,115470.0,1.48611271]
[1758314712387,0.1274035,115480.0,115470.0,1.48611271]
[1758314720595,0.1274035,115480.0,115470.0,1.14594]
[1758314720795,0.1274035,115480.0,115470.0,1.48611271]
[1758314731005,0.0001,115500.0,115490.0,0.088756]
[1758314731204,0.0865285,115500.0,115490.0,2.18772542]
[1758314731396,0.0865285,115500.0,115490.0,1.93408871]
[1758314732305,0.0915285,115500.0,115490.0,1.93408871]
[1758314733304,0.0915285,115500.0,115490.0,1.93404871]
[1758314734106,0.0915285,115500.0,115490.0,1.84747271]
[1758314734307,0.1043785,115500.0,115490.0,1.91617507]
[1758314736302,0.1043785,115500.0,115490.0,1.13269507]
[1758314736502,0.1043785,115500.0,115490.0,1.91605507]
[1758314737004,0.1043785,115500.0,115490.0,1.13269507]
[1758314737410,0.1043785,115500.0,115490.0,1.91597507]
[1758314737904,0.1043785,115500.0,115490.0,1.13269507]
[1758314738105,0.1043785,115500.0,115490.0,1.91593507]
[1758314738804,0.1043785,115500.0,115490.0,2.00247107]
[1758314739008,0.1043785,115500.0,115490.0,1.21923107]
[1758314739208,0.1043785,115500.0,115490.0,2.00247107]
[1758314739597,0.1043785,115500.0,115490.0,1.13269507]
[1758314739798,0.1043785,115500.0,115490.0,1.91589507]
[1758314740205,0.1043785,115500.0,115490.0,1.13269507]
[1758314740409,0.1043785,115500.0,115490.0,1.91589507]
[1758314741410,0.1043785,115500.0,115490.0,1.13269507]
[1758314741604,0.1043785,115500.0,115490.0,2.00239107]
[1758314742004,0.1043785,115500.0,115490.0,2.01159546]
[1758314743012,0.1043785,115500.0,115490.0,1.22843546]
[1758314743212,0.1043785,115500.0,115490.0,2.01159546]
[1758314744312,0.1043785,115500.0,115490.0,1.92497946]
[1758314745312,0.1043785,115500.0,115490.0,1.92493946]
[1758314747913,0.1043785,115500.0,115490.0,1.14189946]
[1758314748110,0.1043785,115500.0,115490.0,1.92485946]
[1758314748412,0.1043785,115500.0,115490.0,1.14189946]
[1758314748612,0.1043785,115500.0,115490.0,1.92485946]
[1758314752511,0.1043785,115500.0,115490.0,1.92477946]
[1758314752707,0.1043785,115500.0,115490.0,1.13269507]
[1758314753110,0.1043785,115500.0,115490.0,1.91553507]
[1758314753617,0.1043785,115500.0,115490.0,1.13269507]
[1758314753914,0.1043785,115500.0,115490.0,1.91548049]
[1758314753915,0.69453663,115500.0,115490.0,1.91548049]
[1758314754115,0.69453663,115500.0,115490.0,1.84677813]
[1758314754314,0.69453663,115500.0,115490.0,1.84697813]
[1758314756614,0.69453663,115500.0,115490.0,1.06397813]
[1758314756819,0.71643663,115500.0,115490.0,1.06397813]
[1758314757016,0.71643663,115500.0,115490.0,1.84689813]
[1758314757418,0.71643663,115500.0,115490.0,1.06397813]
[1758314757718,0.71643663,115500.0,115490.0,1.84689813]
[1758314761516,0.71643663,115500.0,115490.0,1.06397813]
[1758314761826,0.71643663,115500.0,115490.0,1.84685813]
[1758314769021,0.71643663,115500.0,115490.0,1.5067]
[1758314769219,0.71643663,115500.0,115490.0,1.84685813]
[1758314771130,0.71643663,115500.0,115490.0,1.06397813]
[1758314771334,0.71643663,115500.0,115490.0,1.84665813]
[1758314771533,0.71643663,115500.0,115490.0,1.06397813]
[1758314771728,0.71643663,115500.0,115490.0,1.84665813]
[1758314776933,0.80659476,115500.0,115490.0,0.72382]
[1758314777134,0.80659476,115500.0,115490.0,1.84661813]
[1758314777831,0.46643663,115500.0,115490.0,1.84661813]
[1758314782239,0.46643663,115500.0,115490.0,1.50646]
[1758314782444,0.46643663,115500.0,115490.0,1.84661813]
[1758314783241,0.80659476,115500.0,115490.0,1.84661813]
[1758314783444,0.80659476,115500.0,115490.0,1.50646]
[1758314783644,0.46643663,115500.0,115490.0,1.50646]
[1758314784043,0.80659476,115500.0,115490.0,1.50646]
[1758314785940,0.80659476,115500.0,115490.0,1.84661813]
[1758314787343,0.46643663,115500.0,115490.0,1.84661813]
[1758314790046,0.46643663,115500.0,115490.0,1.48581813]
[1758314796850,0.80659476,115500.0,115490.0,1.14566]
[1758314797055,0.46643663,115500.0,115490.0,1.14566]
[1758314798452,0.46643663,115500.0,115490.0,1.48581813]
[1758314802951,0.1262785,115500.0,115490.0,1.48581813]
[1758314803251,0.46643663,115500.0,115490.0,1.48581813]
[1758314814869,0.46643663,115500.0,115490.0,1.14566]
[1758314815069,0.46643663,115500.0,115490.0,1.48581813]
[1758314815870,0.46643939,115500.0,115490.0,1.14566]
[1758314816169,0.1262785,115500.0,115490.0,1.14566]
[1758314816566,0.1262785,115500.0,115490.0,1.48582089]
[1758314819872,0.46643939,115500.0,115490.0,1.14566]
[1758314820575,0.46643939,115500.0,115490.0,0.36302]
[1758314820767,0.46643939,115500.0,115490.0,1.14682]
[1758314827280,0.46643939,115500.0,115490.0,0.36302]
[1758314827482,0.46643939,115500.0,115490.0,1.14658]
[1758314841491,0.46643939,115500.0,115490.0,1.14614]
[1758314843491,0.46643939,115500.0,115490.0,0.36302]
[1758314844281,0.46643939,115500.0,115490.0,0.00222]
[1758314844485,1.24967939,115500.0,115490.0,0.00222]
[1758314844890,0.01279,115490.0,115480.0,2.6443]
[1758314845090,0.43948619,115490.0,115480.0,2.6442]
[1758314845696,0.0993253,115490.0,115480.0,1.1442]
[1758314845998,0.43948619,115490.0,115480.0,1.1442]
[1758314846898,0.46166619,115490.0,115480.0,0.36302]
[1758314847103,0.46166619,115490.0,115480.0,0.00422]
[1758314848103,0.46266619,115490.0,115480.0,0.00222]
[1758314849787,0.46566619,115490.0,115480.0,0.00222]
[1758314850090,0.46966619,115490.0,115480.0,0.00222]
[1758314850489,1.25318619,115490.0,115480.0,0.00222]
[1758314850905,0.46966619,115490.0,115480.0,0.00222]
[1758314851093,1.25310619,115490.0,115480.0,0.00222]
[1758314852488,0.0993329,115480.0,115470.0,1.14446]
[1758314852688,0.43949379,115480.0,115470.0,1.14436]
[1758314853706,0.44852101,115480.0,115470.0,1.14436]
[1758314854197,0.44952101,115480.0,115470.0,1.14436]
[1758314855504,0.45052101,115480.0,115470.0,1.14436]
[1758314875512,0.45052101,115480.0,115470.0,0.3608]
[1758314875712,0.1233003,115470.0,115460.0,0.77248613]
[1758314876016,0.46363153,115470.0,115460.0,1.55524613]
[1758314877423,0.46363153,115470.0,115460.0,1.55724613]
[1758314878034,0.46363153,115470.0,115460.0,1.1479]
[1758314878226,0.46363153,115470.0,115460.0,1.48823123]
[1758314880827,0.46363153,115470.0,115460.0,0.70535123]
[1758314881027,0.46363153,115470.0,115460.0,1.48851123]
[1758314881726,0.46363153,115470.0,115460.0,2.98851123]
[1758314886830,0.1233003,115470.0,115460.0,2.98851123]
[1758314887030,0.46363153,115470.0,115460.0,2.98851123]
[1758314898741,0.46363153,115470.0,115460.0,2.98823123]
[1758314899445,0.46463153,115470.0,115460.0,1.48623123]
[1758314899841,0.46463153,115470.0,115460.0,2.98623123]
[1758314900146,0.46563153,115470.0,115460.0,2.98623123]
[1758314903548,0.1253003,115470.0,115460.0,2.98623123]
[1758314903748,0.46563153,115470.0,115460.0,2.98623123]
[1758314904047,0.46563153,115470.0,115460.0,2.6459]
[1758314904249,0.46563153,115470.0,115460.0,2.98623123]
[1758314908852,0.1253003,115470.0,115460.0,2.98623123]
[1758314909053,0.46563153,115470.0,115460.0,2.98623123]
[1758314913453,0.46563153,115470.0,115460.0,1.14594]
[1758314915960,0.46563153,115470.0,115460.0,1.48627123]
[1758314918256,0.46563153,115470.0,115460.0,1.14594]
[1758314920048,0.46563153,115470.0,115460.0,0.36302]
[1758314920249,0.80596276,115470.0,115460.0,0.36302]
[1758314920458,0.46563153,115470.0,115460.0,0.36302]
[1758314935371,1.24859153,115470.0,115460.0,0.36302]
[1758314935765,1.24864554,115470.0,115460.0,0.36302]
[1758314942778,1.58903078,115470.0,115460.0,0.36302]
[1758314943980,1.24864554,115470.0,115460.0,0.36302]
[1758314953690,1.24864554,115470.0,115460.0,0.00222]
[1758314953887,1.24864554,115470.0,115460.0,0.36302]
[1758314961203,0.9082603,115470.0,115460.0,0.36302]
[1758314961391,1.24864554,115470.0,115460.0,0.36302]
[1758314969616,0.1219078,115460.0,115450.0,0.0002]
[1758314969815,0.1219153,115450.0,115440.0,0.0002]
[1758314970014,0.1219228,115440.0,115430.0,0.0002]
[1758314970214,0.1219303,115430.0,115420.0,0.361]
[1758314970411,0.46231554,115430.0,115420.0,0.3608]
[1758314971415,0.45331554,115430.0,115420.0,0.3608]
[1758314972609,0.45431554,115430.0,115420.0,0.3738]
[1758314972815,0.45231554,115430.0,115420.0,0.3738]
[1758314973011,0.52169775,115430.0,115420.0,0.3738]
[1758314973518,0.52269775,115430.0,115420.0,0.3738]
[1758314974315,0.52169775,115430.0,115420.0,0.3608]
[1758314974514,0.52769775,115430.0,115420.0,0.3608]
[1758314975218,0.18731251,115430.0,115420.0,0.3608]
[1758314975406,0.52769775,115430.0,115420.0,0.3608]
[1758314984427,0.77769775,115430.0,115420.0,0.3608]
[1758314986214,0.1219373,115420.0,115410.0,0.361]
[1758314986419,0.46232254,115420.0,115410.0,0.3608]
[1758314987218,0.47966259,115420.0,115410.0,0.3608]
[1758314987614,1.26290259,115420.0,115410.0,0.3608]
[1758314988412,0.47966259,115420.0,115410.0,0.3608]
[1758314988618,1.26490259,115420.0,115410.0,0.3608]
[1758314991429,1.51490259,115420.0,115410.0,0.3608]
[1758314992216,0.73166259,115420.0,115410.0,0.3608]
[1758314992526,1.51486259,115420.0,115410.0,0.3608]
[1758314993130,1.17447735,115420.0,115410.0,0.3608]
[1758314993327,1.51486259,115420.0,115410.0,0.3608]
[1758314993728,0.73166259,115420.0,115410.0,0.3608]
[1758314993928,1.51486259,115420.0,115410.0,0.3608]
[1758314995630,1.51514259,115420.0,115410.0,0.3608]
[1758314995822,1.85615641,115420.0,115410.0,0.3608]
[1758314997529,1.17475735,115420.0,115410.0,0.3608]
[1758314997730,1.85615641,115420.0,115410.0,0.3608]
[1758314997928,1.85611641,115420.0,115410.0,0.3608]
[1758315000731,1.07267641,115420.0,115410.0,0.3608]
[1758315000925,1.85615641,115420.0,115410.0,0.3608]
[1758315004334,1.07267641,115420.0,115410.0,0.3608]
[1758315004628,1.85615641,115420.0,115410.0,0.3608]
[1758315010632,0.1229746,115410.0,115400.0,0.361]
[1758315010829,0.46367413,115410.0,115400.0,0.3608]
[1758315012133,0.46367413,115410.0,115400.0,0.3618]
[1758315012333,0.1229746,115410.0,115400.0,0.3618]
[1758315012541,0.80437366,115410.0,115400.0,0.3618]
[1758315012933,0.80437366,115410.0,115400.0,0.3628]
[1758315014237,0.80437366,115410.0,115400.0,0.002]
[1758315017642,1.07902464,115410.0,115400.0,0.002]
[1758315018043,1.43982464,115410.0,115400.0,0.002]
[1758315020244,2.22810464,115410.0,115400.0,0.002]
[1758315022835,1.43982464,115410.0,115400.0,0.002]
[1758315023033,2.22806464,115410.0,115400.0,0.002]
[1758315024343,2.20341366,115410.0,115400.0,0.002]
[1758315039363,1.95341366,115410.0,115400.0,0.002]
[1758315041158,1.97778898,115410.0,115400.0,0.002]
[1758315043366,1.97730898,115410.0,115400.0,0.002]
[1758315044371,1.97746898,115410.0,115400.0,0.002]
[1758315049875,1.95309366,115410.0,115400.0,0.002]
[1758315050675,1.95309366,115410.0,115400.0,1e-07]
[1758315056677,1.97749665,115410.0,115400.0,1e-07]
[1758315057783,1.97764551,115410.0,115400.0,1e-07]
[1758315061384,1.29609759,115410.0,115400.0,1e-07]
[1758315061585,1.97764551,115410.0,115400.0,1e-07]
[1758315066490,1.95324252,115410.0,115400.0,1e-07]
[1758315071191,1.97769618,115410.0,115400.0,1e-07]
[1758315071695,1.95324252,115410.0,115400.0,1e-07]
[1758315072193,1.97769618,115410.0,115400.0,1e-07]
[1758315075602,1.61689618,115410.0,115400.0,1e-07]
[1758315075803,1.97769618,115410.0,115400.0,1e-07]
[1758315076905,0.4837746,115410.0,115400.0,1e-07]
[1758315077202,1.25258856,115410.0,115400.0,1e-07]
[1758315079000,1.59336252,115410.0,115400.0,1e-07]
[1758315094616,1.59272252,115410.0,115400.0,1e-07]
[1758315094918,0.9111746,115410.0,115400.0,1e-07]
[1758315095215,1.59272252,115410.0,115400.0,1e-07]
[1758315098720,0.9111746,115410.0,115400.0,1e-07]
[1758315098919,1.59244252,115410.0,115400.0,1e-07]
[1758315108328,1.60970066,115410.0,115400.0,1e-07]
[1758315117736,1.60963406,115410.0,115400.0,1e-07]
[1758315131748,0.92815274,115410.0,115400.0,1e-07]
[1758315131950,1.60963406,115410.0,115400.0,1e-07]
[1758315132842,0.92815274,115410.0,115400.0,1e-07]
[1758315133044,1.60963406,115410.0,115400.0,1e-07]
[1758315135252,0.82171406,115410.0,115400.0,1e-07]
[1758315135456,0.14023274,115410.0,115400.0,0.95154076]
[1758315135655,0.1229746,115410.0,115400.0,1.29228142]
[1758315135945,0.1229746,115410.0,115400.0,0.63084817]
[1758315136147,0.1229746,115410.0,115400.0,1.31232949]
[1758315136351,0.46371526,115410.0,115400.0,1.31232949]
[1758315136538,0.46371526,115410.0,115400.0,0.63084817]
[1758315136742,0.46371526,115410.0,115400.0,0.97158883]
[1758315139252,0.46371526,115410.0,115400.0,0.63084817]
[1758315139454,0.46371526,115410.0,115400.0,0.97158883]
[1758315148957,0.46371526,115410.0,115400.0,1.75890883]
[1758315150057,0.1229746,115410.0,115400.0,1.75890883]
[1758315150253,0.46371526,115410.0,115400.0,1.75890883]
[1758315151459,0.48135988,115410.0,115400.0,1.75890883]
[1758315157864,0.48135988,115410.0,115400.0,0.97158883]
[1758315158166,0.48135988,115410.0,115400.0,1.75830883]
[1758315158462,0.48135988,115410.0,115400.0,1.41756817]
[1758315158651,0.48135988,115410.0,115400.0,1.75830883]
[1758315159262,0.48135988,115410.0,115400.0,1.50830883]
[1758315161558,0.48135988,115410.0,115400.0,0.38084817]
[1758315161963,0.14061922,115410.0,115400.0,0.38084817]
[1758315162165,0.48135988,115410.0,115400.0,0.38084817]
[1758315163357,0.14061922,115410.0,115400.0,0.38084817]
[1758315163563,0.48135988,115410.0,115400.0,0.38084817]
[1758315166363,1.07210054,115410.0,115400.0,0.3608001]
[1758315167470,1.07210054,115410.0,115400.0,1e-07]
[1758315173671,1.43290054,115410.0,115400.0,1e-07]
[1758315175662,1.7736412,115410.0,115400.0,1e-07]
[1758315175860,1.7736412,115410.0,115390.0,0.0002]
[1758315176065,0.1215798,115390.0,115380.0,0.38113214]
[1758315176361,0.80306112,115390.0,115380.0,0.02033214]
[1758315177776,0.80006112,115390.0,115380.0,0.02033214]
[1758315177969,1.58678112,115390.0,115380.0,0.02033214]
[1758315178370,1.58678112,115390.0,115380.0,0.02433214]
[1758315178573,0.80006112,115390.0,115380.0,0.02433214]
[1758315178774,1.58674112,115390.0,115380.0,0.02433214]
[1758315179268,0.80006112,115390.0,115380.0,0.004]
[1758315179574,1.58774112,115390.0,115380.0,0.012]
[1758315179873,1.24713112,115390.0,115380.0,0.012]
[1758315181272,1.58800244,115390.0,115380.0,0.012]
[1758315182770,1.83800244,115390.0,115380.0,0.012]
[1758315182964,2.19880244,115390.0,115380.0,0.012]
[1758315183164,2.26795236,115390.0,115380.0,0.012]
[1758315183777,2.19880244,115390.0,115380.0,0.012]
[1758315184776,2.19780244,115390.0,115380.0,0.004]
[1758315184974,0.1231546,115370.0,115360.0,0.69660601]
[1758315185173,1.25054592,115370.0,115360.0,0.69650601]
[1758315185363,1.25054592,115370.0,115360.0,0.3608]
[1758315186975,1.25042592,115370.0,115360.0,0.3658]
[1758315187579,0.46402592,115370.0,115360.0,0.3658]
[1758315187872,1.25042592,115370.0,115360.0,0.3678]
[1758315188877,1.25911285,115370.0,115360.0,0.3678]
[1758315189882,1.25899285,115370.0,115360.0,0.3678]
[1758315190579,0.1231621,115360.0,115350.0,0.38117461]
[1758315190878,0.46403342,115360.0,115350.0,0.38117461]
[1758315191879,0.46403342,115360.0,115350.0,0.38517461]
[1758315192079,0.46503342,115360.0,115350.0,0.39317461]
[1758315201584,0.1241621,115360.0,115350.0,0.73404593]
[1758315203586,0.1008521,115360.0,115350.0,0.73404593]
[1758315203981,0.1225921,115360.0,115350.0,0.73404593]
[1758315204388,0.1225921,115360.0,115350.0,0.39317461]
[1758315204686,0.1225921,115360.0,115350.0,0.73404593]
[1758315208887,0.1008521,115360.0,115350.0,0.73404593]
[1758315209288,0.1225921,115360.0,115350.0,0.73404593]
[1758315213191,0.1008521,115360.0,115350.0,0.73404593]
[1758315213799,0.1225921,115360.0,115350.0,0.39317461]
[1758315213998,0.1225921,115360.0,115350.0,0.73404593]
[1758315218994,0.1225921,115360.0,115350.0,1.51964593]
[1758315220294,0.0876321,115360.0,115350.0,1.51964593]
[1758315223198,0.1014021,115360.0,115350.0,1.51964593]